bitfinex/quotes_ETHUSD_20260131
["timestamp","ask_amount","ask_price","bid_price","bid_amount"]
[1769879013504,15.62575074,2493.7,2492.0,1.00321027]
[1769879013688,15.34389323,2493.6,2492.0,1.00321027]
[1769879014316,0.842,2493.5,2492.0,1.00321027]
[1769879014680,15.34389323,2493.6,2492.0,1.00321027]
[1769879014908,0.841,2493.4,2492.0,1.00321027]
[1769879016198,15.34389323,2493.6,2492.0,1.00321027]
[1769879016400,46.25686394,2493.5,2491.9,1.00323318]
[1769879016604,13.88361816,2493.4,2491.3,4.01387284]
[1769879016905,13.88361816,2493.4,2490.7,0.01214402]
[1769879016906,13.77402328,2493.1,2491.4,1.0034282]
[1769879017091,13.77402328,2492.9,2491.6,1.00333345]
[1769879017288,0.841,2492.8,2491.6,1.00334424]
[1769879017494,0.841,2492.8,2491.7,1.00332952]
[1769879017692,0.841,2492.7,2491.7,1.00330307]
[1769879017916,1.37740233,2493.0,2491.0,12.64563344]
[1769879018101,13.77402328,2493.4,2491.6,0.01214402]
[1769879018585,14.61502328,2493.4,2491.7,0.01214402]
[1769879018778,14.77667692,2493.4,2491.6,0.01214402]
[1769879019107,14.77667692,2493.4,2491.4,12.64563344]
[1769879019108,13.77402328,2493.4,2491.4,12.64563344]
[1769879019308,13.77402328,2493.4,2491.9,0.01214402]
[1769879019501,2.38186691,2493.3,2491.6,0.01214402]
[1769879019698,1.10590993,2493.8,2491.9,0.01214402]
[1769879019902,15.61763172,2493.5,2491.9,1.00322972]
[1769879020217,0.841,2493.5,2491.9,1.00323185]
[1769879020519,0.841,2493.6,2492.0,0.5016234]
[1769879020825,14.61502328,2493.6,2492.0,0.5016234]
[1769879020998,13.77402328,2493.6,2491.9,1.00323185]
[1769879021187,13.60723609,2493.7,2491.9,1.01537587]
[1769879021387,13.60723609,2493.7,2491.9,1.00323185]
[1769879021626,0.1024,2493.6,2491.6,0.01214402]
[1769879021920,12.76623609,2493.4,2491.6,0.01214402]
[1769879022101,12.76623609,2493.4,2491.5,0.01214402]
[1769879022102,2.21788429,2493.3,2491.5,0.01214402]
[1769879022425,0.01214402,2495.0,2493.1,13.59814375]
[1769879022590,0.9655488,2495.1,2494.7,0.01214402]
[1769879022925,0.9655488,2495.1,2493.4,0.20794902]
[1769879022926,13.73178489,2495.1,2493.4,0.20794902]
[1769879023095,0.01214402,2493.7,2493.4,0.20794902]
[1769879023493,0.01214402,2493.5,2493.2,5.08921046]
[1769879023691,0.01214402,2492.8,2491.8,2.56105587]
[1769879023924,0.01214402,2492.6,2492.0,1.00321027]
[1769879024089,0.01214402,2492.8,2492.0,1.00321027]
[1769879024439,0.01214402,2492.7,2492.0,1.00321027]
[1769879024720,0.01214402,2492.7,2491.9,4.01284109]
[1769879024721,0.01214402,2492.5,2491.9,1.00324914]
[1769879024925,0.01214402,2492.0,2491.0,1.00360688]
[1769879025136,0.01214402,2492.0,2489.9,0.50326276]
[1769879025137,0.01214402,2491.6,2490.9,1.00365329]
[1769879025332,0.01214402,2491.3,2490.9,1.00365329]
[1769879026025,0.01214402,2493.7,2492.1,13.59814375]
[1769879026229,0.01214402,2493.7,2491.5,0.1024]
[1769879026230,12.76623609,2495.2,2492.7,13.59814375]
[1769879026435,0.08221942,2495.5,2493.5,13.59814375]
[1769879026723,0.0700754,2495.5,2493.7,13.59814375]
[1769879026936,0.01214402,2495.0,2492.9,13.59814375]
[1769879027092,0.01214402,2494.8,2493.0,15.094061]
[1769879027315,0.01214402,2495.0,2493.0,15.094061]
[1769879027622,0.01214402,2494.9,2493.0,15.094061]
[1769879027856,1.00188354,2495.3,2493.2,1.00272741]
[1769879028169,12.76623609,2495.1,2493.2,1.00272741]
[1769879028319,0.1024,2495.3,2493.2,1.00272741]
[1769879028644,0.1024,2495.3,2493.3,0.50136371]
[1769879029024,1.0018586,2495.4,2493.3,0.50136371]
[1769879029025,0.841,2495.4,2493.3,0.50136371]
[1769879029225,0.0700754,2495.5,2493.3,0.50136371]
[1769879029543,1.07188411,2495.5,2493.3,14.09950746]
[1769879029842,1.07189201,2495.5,2493.4,1.00264698]
[1769879030043,1.07189201,2495.5,2493.5,1.91127424]
[1769879030242,0.0700754,2495.5,2493.4,1.00264698]
[1769879030549,0.1024,2495.4,2493.4,1.00264698]
[1769879030718,0.01214402,2495.1,2493.4,1.00264698]
[1769879030917,0.01214402,2494.8,2493.4,1.00264698]
[1769879031124,0.01214402,2494.7,2493.4,1.00264698]
[1769879031336,0.01214402,2494.6,2493.2,1.0027259]
[1769879031550,0.01214402,2494.3,2493.0,1.00280014]
[1769879031735,0.01214402,2494.1,2492.8,1.00286142]
[1769879031940,0.01214402,2494.1,2492.4,4.01214754]
[1769879032130,0.01214402,2494.4,2492.5,0.58561968]
[1769879032325,0.01214402,2494.5,2492.5,0.58561968]
[1769879032526,1.01431108,2494.6,2492.5,14.19590745]
[1769879032527,0.01214402,2494.6,2492.5,14.19590745]
[1769879032739,0.01214402,2494.7,2492.6,0.01214402]
[1769879032958,0.01214402,2495.1,2494.3,13.59814375]
[1769879033140,0.01214402,2495.3,2495.0,1.14090393]
[1769879033335,1.394928,2496.3,2494.0,0.01214402]
[1769879033648,0.54130008,2496.2,2494.1,0.01214402]
[1769879033849,0.54130008,2496.2,2493.9,13.59814375]
[1769879033850,0.01214402,2496.0,2493.9,13.59814375]
[1769879034053,1.00164269,2495.9,2494.0,1.00240577]
[1769879034221,0.51417977,2495.8,2494.0,3.26438534]
[1769879034421,0.01214402,2495.7,2494.0,1.00240577]
[1769879034825,0.01214402,2495.6,2494.0,1.00240577]
[1769879035028,12.77838011,2495.8,2493.6,0.0011]
[1769879035228,12.77838011,2495.8,2492.4,0.0011]
[1769879035229,0.01214402,2493.7,2493.4,0.0011]
[1769879035447,0.01214402,2493.9,2493.4,1.00374698]
[1769879035652,0.01214402,2493.7,2493.4,1.00374698]
[1769879036052,0.01214402,2493.6,2493.4,0.0011]
[1769879036368,0.01214402,2493.5,2493.4,0.0011]
[1769879036579,0.01214402,2493.5,2492.2,1.00312976]
[1769879036876,0.01214402,2493.6,2492.2,1.00312976]
[1769879037033,0.01214402,2493.8,2492.2,1.00312976]
[1769879037233,0.01214402,2494.1,2492.2,1.00312976]
[1769879037536,0.01214402,2493.6,2492.2,1.00312976]
[1769879037737,0.01214402,2493.7,2492.2,1.00312976]
[1769879037942,0.01214402,2493.9,2492.4,1.00414926]
[1769879038130,0.01214402,2494.6,2492.5,0.51187463]
[1769879038334,0.01214402,2494.1,2492.5,0.51187463]
[1769879038860,0.01214402,2494.6,2492.5,0.51187463]
[1769879039229,0.01214402,2494.6,2492.5,14.11001838]
[1769879039451,0.01214402,2494.5,2492.6,15.21196051]
[1769879039760,0.01214402,2494.4,2492.6,15.21196051]
[1769879039961,0.01214402,2494.4,2492.7,1.00292855]
[1769879040158,0.01214402,2493.6,2492.7,1.00292855]
[1769879040358,0.01214402,2493.2,2492.6,1.00296585]
[1769879040557,0.01214402,2492.9,2492.4,0.0011]
[1769879040769,0.01214402,2492.9,2492.5,1.0030089]
[1769879040951,0.01214402,2492.7,2492.0,1.00319099]
[1769879041260,0.01214402,2492.7,2491.5,4.0134997]
[1769879041458,0.01214402,2492.5,2491.6,1.40469608]
[1769879041631,0.01214402,2492.8,2491.6,1.40469608]
[1769879041832,0.01214402,2492.7,2491.6,1.40469608]
[1769879042028,0.01214402,2492.5,2491.6,1.40469608]
[1769879042258,0.01214402,2492.9,2491.7,0.74933071]
[1769879042464,0.01214402,2492.8,2491.7,0.74933071]
[1769879042663,13.78107261,2493.3,2491.7,0.74933071]
[1769879042664,0.46075573,2493.4,2491.7,0.74933071]
[1769879042862,0.01214402,2493.5,2491.7,0.74933071]
[1769879043034,0.01214402,2493.1,2491.8,0.21540268]
[1769879043361,0.01214402,2493.0,2491.8,0.21540268]
[1769879043560,0.01214402,2493.1,2491.8,0.21540268]
[1769879044072,0.01214402,2493.1,2491.9,1.00325053]
[1769879044283,12.77838011,2494.5,2491.8,14.81683203]
[1769879044563,0.01214402,2493.7,2491.9,15.33824335]
[1769879044762,0.01214402,2493.1,2491.9,1.7400996]
[1769879044961,0.01214402,2493.5,2492.0,0.29587879]
[1769879045381,4.02112413,2494.6,2492.0,0.29587879]
[1769879045382,0.01214402,2494.4,2492.1,13.94625807]
[1769879045660,0.01214402,2494.4,2492.3,0.01214402]
[1769879045987,0.01214402,2494.4,2492.4,13.61028777]
[1769879046262,0.01214402,2494.4,2492.5,1.00300902]
[1769879046940,0.01214402,2494.5,2492.5,1.00300902]
[1769879047262,0.01214402,2494.3,2492.5,1.00300902]
[1769879047633,0.01214402,2493.1,2492.3,2.75686899]
[1769879047834,0.01214402,2493.0,2492.4,1.00303907]
[1769879048149,0.01214402,2493.3,2492.2,4.01219707]
[1769879048353,0.01214402,2493.3,2492.3,0.50153671]
[1769879048559,0.01214402,2494.0,2492.3,0.50153671]
[1769879048864,0.01214402,2493.5,2492.3,0.50153671]
[1769879049040,0.01214402,2493.2,2492.1,1.00317001]
[1769879049672,0.01214402,2493.0,2492.0,1.29906155]
[1769879050372,13.15200392,2494.5,2492.0,14.88544958]
[1769879050549,0.01214402,2493.8,2492.0,14.88544958]
[1769879050744,0.01214402,2493.8,2492.1,1.97403907]
[1769879050946,0.01214402,2493.9,2492.1,15.5604271]
[1769879051758,0.01214402,2494.2,2492.2,0.2335703]
[1769879052043,0.01214402,2494.1,2492.2,13.58638803]
[1769879052260,0.01214402,2494.1,2492.3,2.55913222]
[1769879052951,1.67337507,2491.7,2490.2,0.01214402]
[1769879053277,31.00240577,2494.0,2490.2,1.00391981]
[1769879053278,1.66123104,2491.8,2490.2,1.00391981]
[1769879053443,1.66123104,2491.8,2490.0,13.59853205]
[1769879053803,0.1024,2491.7,2489.7,0.841]
[1769879054094,0.1024,2491.7,2489.9,0.01214402]
[1769879054285,0.1024,2491.5,2489.8,1.0040851]
[1769879054448,0.61432566,2491.5,2489.7,0.841]
[1769879054654,13.64497329,2491.5,2489.7,0.841]
[1769879054848,0.61432566,2491.5,2489.7,0.841]
[1769879055188,0.1024,2491.3,2489.7,0.841]
[1769879055892,0.1024,2491.1,2489.7,0.841]
[1769879056191,1.003613,2491.0,2489.7,0.841]
[1769879056363,0.5120465,2490.9,2489.7,0.841]
[1769879056989,0.5120465,2490.9,2488.8,13.58638803]
[1769879056990,0.1024,2490.8,2488.8,13.58638803]
[1769879057190,0.5120465,2490.9,2489.1,1.00436535]
[1769879057492,27.7794,2490.8,2488.8,13.58638803]
[1769879057693,0.5120465,2490.9,2489.0,1.00441656]
[1769879057694,0.1024,2490.6,2489.0,1.00441656]
[1769879058282,1.00381449,2490.5,2488.9,1.3586388]
[1769879058759,1.00381449,2490.5,2488.9,2.37522624]
[1769879058958,1.00381449,2490.5,2489.1,13.59853205]
[1769879059159,1.00381449,2490.5,2489.2,1.37321163]
[1769879059480,1.66123104,2490.4,2489.3,0.0011]
[1769879060177,1.00389511,2490.3,2489.3,0.0011]
[1769879062454,1.00377419,2490.6,2489.3,0.0011]
[1769879062948,43.13195863,2490.5,2489.0,0.0011]
[1769879063151,0.1024,2490.4,2489.0,0.0011]
[1769879063380,1.66123104,2490.2,2489.0,0.0011]
[1769879064683,1.00397574,2490.1,2489.0,0.0011]
[1769879066050,0.90397574,2490.1,2489.0,0.0011]
[1769879066251,1.79755391,2490.1,2489.0,0.0011]
[1769879066674,0.90397574,2490.1,2489.0,0.0011]
[1769879067159,1.0038548,2490.4,2489.0,13.58748803]
[1769879067892,1.66123104,2490.0,2489.0,13.58748803]
[1769879068600,2.66528198,2490.0,2489.0,13.58748803]
[1769879068758,2.66528198,2490.0,2489.0,14.59187629]
[1769879068960,2.66528198,2490.0,2489.0,15.04667566]
[1769879069158,2.66528198,2490.0,2489.0,16.05109482]
[1769879069354,2.66528198,2490.0,2489.0,15.04667566]
[1769879069597,2.66528198,2490.0,2489.0,0.0011]
[1769879069990,0.1024,2489.9,2488.5,0.841]
[1769879070456,2.66528198,2490.0,2488.6,14.59094068]
[1769879070661,2.66528198,2490.0,2488.6,14.59096266]
[1769879071462,2.66528198,2490.0,2488.5,0.841]
[1769879071655,0.66813462,2489.9,2488.5,0.841]
[1769879072678,1.00409671,2489.8,2489.0,0.0011]
[1769879072861,0.1024,2489.7,2489.0,0.0011]
[1769879073058,0.1024,2489.7,2488.5,1e-08]
[1769879073258,0.68150182,2489.7,2488.5,1e-08]
[1769879073461,13.12978063,2489.5,2487.5,0.0011]
[1769879073692,13.14083565,2489.3,2487.5,0.0011]
[1769879073903,13.14083565,2489.1,2487.6,0.842]
[1769879074091,13.08774419,2488.7,2486.5,13.58748803]
[1769879074388,13.08774419,2488.7,2486.5,0.0011]
[1769879074389,0.2335703,2488.4,2486.5,0.0011]
[1769879074591,0.1024,2488.1,2486.5,0.0011]
[1769879076081,1.50616269,2489.0,2486.9,13.58638803]
[1769879076274,4.01703221,2489.6,2488.1,13.58638803]
[1769879076588,4.01703221,2489.6,2488.2,1.00474238]
[1769879076790,1.66123104,2489.6,2488.2,14.59113041]
[1769879076997,1.66123104,2489.6,2488.3,15.81117694]
[1769879078071,1.66123104,2489.6,2488.3,1.86101587]
[1769879078272,1.66123104,2489.6,2488.1,14.96707398]
[1769879078679,2.66544826,2489.6,2488.3,13.95016107]
[1769879080010,2.66544826,2489.6,2488.0,4.86122024]
[1769879080011,2.66544826,2489.6,2488.0,0.842]
[1769879080307,0.1024,2489.5,2488.0,0.842]
[1769879080721,0.1024,2489.3,2488.0,0.842]
[1769879080875,0.62500903,2489.3,2488.0,1.84681956]
[1769879081070,0.62500903,2489.3,2488.0,0.842]
[1769879082875,1.00433874,2489.2,2488.0,0.842]
[1769879084011,0.1024,2489.1,2487.1,13.26090761]
[1769879084195,0.1024,2489.1,2487.0,1.3598532]
[1769879084196,0.01214402,2489.0,2487.0,2.36507187]
[1769879084399,0.11454402,2488.8,2486.9,0.842]
[1769879084590,0.11454402,2488.6,2486.9,0.842]
[1769879084903,0.1024,2488.3,2486.9,0.842]
[1769879085401,0.11454402,2488.3,2486.9,0.842]
[1769879085600,0.01214402,2488.2,2486.9,0.842]
[1769879086005,0.11454402,2488.2,2486.9,0.842]
[1769879086187,0.11454402,2488.2,2486.7,0.0011]
[1769879086391,0.01214402,2488.1,2486.7,0.0011]
[1769879086983,0.1024,2487.9,2486.7,0.0011]
[1769879087279,0.61626598,2487.9,2486.7,0.0011]
[1769879088551,0.11454402,2487.5,2486.3,0.0011]
[1769879088883,0.1024,2487.3,2486.3,0.0011]
[1769879089079,0.1024,2487.1,2485.5,0.0011]
[1769879089285,1.66123104,2486.9,2485.5,0.0011]
[1769879089497,0.01214402,2486.8,2485.5,0.0011]
[1769879090324,1.66123104,2486.9,2485.5,14.26783758]
[1769879091017,1.00530802,2486.8,2485.5,13.26200761]
[1769879091216,1.00530802,2486.8,2485.5,0.0011]
[1769879091420,0.66877712,2486.7,2485.5,0.0011]
[1769879091987,1.66123104,2486.9,2485.6,13.26090761]
[1769879092630,1.66123104,2486.9,2485.7,0.01214402]
[1769879092787,1.66123104,2486.9,2485.8,13.26090761]
[1769879092986,1.66123104,2486.9,2486.0,13.26090761]
[1769879093188,1.66123104,2486.9,2486.1,14.68756557]
[1769879093827,2.66650925,2486.9,2486.1,14.68756557]
[1769879093990,1.66123104,2486.9,2486.1,14.68756557]
[1769879094392,1.66123104,2486.9,2486.2,0.843]
[1769879094696,1.51875879,2487.9,2486.2,14.11605163]
[1769879094902,1.00489281,2487.9,2486.4,13.26090761]
[1769879095109,0.1024,2487.6,2486.3,1.55427096]
[1769879095305,0.1024,2487.6,2486.2,0.843]
[1769879095703,0.1024,2487.6,2486.2,1.84854344]
[1769879095915,0.1024,2487.6,2486.2,0.843]
[1769879096637,0.1024,2487.6,2485.7,4.02297731]
[1769879096638,0.01214402,2486.7,2485.7,0.0011]
[1769879096841,0.01214402,2486.8,2485.7,0.0011]
[1769879097025,0.1024,2486.4,2485.5,0.0011]
[1769879097203,1.00542931,2486.5,2485.5,0.0011]
[1769879097605,0.01214402,2486.2,2484.9,0.0011]
[1769879097805,26.45514402,2486.1,2484.9,0.0011]
[1769879098021,0.01214402,2486.1,2484.9,0.0011]
[1769879098748,0.01214402,2486.0,2484.9,0.0011]
[1769879099051,0.73038742,2485.9,2484.7,0.0011]
[1769879099238,0.1024,2485.9,2484.7,0.0011]
[1769879099438,0.62881419,2485.9,2484.7,0.0011]
[1769879099642,0.01214402,2485.7,2484.6,0.0011]
[1769879099830,0.11454402,2485.5,2483.9,0.0011]
[1769879100026,3.11628321,2485.5,2484.0,1.00643658]
[1769879100253,0.51427017,2485.9,2484.0,1.00643658]
[1769879100443,0.1024,2485.8,2484.0,1.00643658]
[1769879100647,0.51427017,2485.9,2484.0,1.00643658]
[1769879100957,0.1024,2485.8,2483.9,0.0011]
[1769879101166,1.01789692,2485.7,2483.9,1.00758174]
[1769879101464,0.50530526,2485.6,2483.9,1.00758174]
[1769879101768,0.11454402,2485.5,2483.9,0.0011]
[1769879102060,0.01214402,2485.2,2483.9,0.0011]
[1769879102274,0.01214402,2485.0,2483.9,0.0011]
[1769879102416,0.01214402,2484.8,2483.9,0.0011]
[1769879102728,0.01214402,2485.0,2483.9,0.0011]
[1769879102922,0.01214402,2485.2,2483.9,0.0011]
[1769879103145,1.00599573,2485.1,2483.9,0.0011]
[1769879103335,0.50421227,2485.0,2483.9,0.0011]
[1769879103739,0.1024,2484.9,2483.9,0.0011]
[1769879104121,0.50421227,2485.0,2483.9,0.0011]
[1769879104446,1.51109998,2485.6,2484.0,13.26090761]
[1769879104650,1.00579472,2485.6,2484.0,14.10390761]
[1769879105017,0.01214402,2485.4,2484.0,14.10390761]
[1769879105242,1.00595525,2485.2,2484.0,0.843]
[1769879105434,1.01809927,2485.2,2484.0,0.843]
[1769879105630,1.00595525,2485.2,2484.0,1.84942878]
[1769879105945,1.01809927,2485.2,2484.0,0.843]
[1769879106147,1.00595525,2485.2,2484.0,15.11034647]
[1769879106848,1.0058743,2485.4,2484.0,15.11034647]
[1769879107024,1.00583629,2485.5,2484.1,15.85550578]
[1769879107213,4.02276964,2485.9,2484.2,14.9481407]
[1769879107421,4.02276964,2485.9,2483.9,0.0011]
[1769879107422,0.01214402,2485.6,2483.9,0.0011]
[1769879107620,0.01214402,2485.5,2484.1,1.00639763]
[1769879107844,0.01214402,2485.5,2484.1,14.94817814]
[1769879108019,0.01214402,2485.6,2484.2,15.83915861]
[1769879108340,0.01214402,2485.5,2484.2,1.8973781]
[1769879108547,0.01214402,2485.5,2484.2,0.0011]
[1769879108548,0.01214402,2485.3,2484.2,0.0011]
[1769879108748,0.01214402,2485.2,2484.2,0.0011]
[1769879109379,0.01214402,2484.9,2483.9,0.0011]
[1769879109539,0.01214402,2484.2,2483.5,0.0011]
[1769879109720,0.01214402,2485.0,2483.5,4.02752034]
[1769879109927,0.01214402,2485.0,2483.6,0.40275203]
[1769879109928,0.1024,2485.0,2483.6,0.40275203]
[1769879110224,4.52179807,2485.4,2483.6,14.94835775]
[1769879110225,0.01214402,2485.4,2483.6,14.94835775]
[1769879110428,1.00588588,2485.4,2483.6,14.94835775]
[1769879110764,1.0057529,2485.7,2483.8,13.94178051]
[1769879110922,1.0057529,2485.7,2483.6,1.00657724]
[1769879110923,1.00551019,2486.3,2484.0,13.94178051]
[1769879111142,4.02204078,2486.5,2484.2,13.94178051]
[1769879111534,0.1024,2486.4,2484.2,13.94178051]
[1769879112457,0.1024,2486.2,2484.2,13.94178051]
[1769879112763,0.1024,2486.3,2484.2,13.94178051]
[1769879113062,1.82267859,2486.3,2484.3,15.43659863]
[1769879113261,0.1024,2486.1,2484.4,1.00627918]
[1769879113754,0.1024,2486.1,2484.4,14.94805969]
[1769879113956,1.00555063,2486.2,2484.4,14.94805969]
[1769879114153,0.001,2486.6,2484.8,13.94178051]
[1769879114451,0.001,2486.6,2485.0,13.94178051]
[1769879114627,1.00639889,2486.6,2485.0,13.94178051]
[1769879115550,0.001,2486.6,2485.1,1.00599573]
[1769879115753,0.001,2486.6,2484.9,1.34851789]
[1769879115754,0.001,2486.6,2484.9,2.35456447]
[1769879115984,2.00469889,2484.6,2483.0,0.0011]
[1769879116256,0.01214402,2483.1,2480.9,2.0931064]
[1769879116473,0.01214402,2483.8,2481.5,2.01799525]
[1769879116624,0.01214402,2483.5,2481.5,2.01799525]
[1769879116825,0.01214402,2483.3,2481.4,13.94178051]
[1769879117058,0.01214402,2483.3,2481.1,13.94178051]
[1769879117059,0.01214402,2483.1,2481.1,13.94178051]
[1769879117245,0.01214402,2484.8,2482.1,13.94178051]
[1769879117557,1.0064007,2484.1,2482.3,1.00713048]
[1769879117965,1.01854472,2484.1,2482.3,1.00713048]
[1769879118264,1.00619818,2484.6,2482.9,13.94178051]
[1769879118425,1.00619818,2484.6,2483.0,1.17184641]
[1769879118646,1.21508734,2484.9,2483.0,15.11362692]
[1769879118861,0.20899098,2484.9,2483.2,13.95392453]
[1769879119074,0.20899098,2484.9,2483.4,13.95392453]
[1769879119254,0.20899098,2484.9,2483.5,13.95392453]
[1769879119565,0.01214402,2485.7,2483.6,1.39539245]
[1769879119767,1.00579336,2485.6,2483.7,1.00656278]
[1769879120368,0.1024,2485.5,2483.7,1.00656278]
[1769879120530,0.01214402,2485.4,2483.7,1.00656278]
[1769879121034,0.01214402,2485.4,2483.4,13.94178051]
[1769879121035,0.01214402,2485.1,2483.4,1.00667328]
[1769879121245,0.01214402,2484.8,2483.3,0.844]
[1769879121448,0.01214402,2484.8,2483.3,1.85071011]
[1769879121449,0.01214402,2484.7,2483.3,1.85071011]
[1769879121645,0.01214402,2484.7,2483.3,0.844]
[1769879121646,3.0183422,2484.6,2483.3,0.844]
[1769879121865,1.0183422,2484.6,2483.3,0.844]
[1769879122436,0.01214402,2484.5,2483.3,0.844]
[1769879123063,0.01214402,2484.3,2483.3,0.844]
[1769879123245,0.01214402,2484.1,2482.7,1.00694226]
[1769879123433,0.01214402,2484.4,2482.6,1.00698065]
[1769879123627,1.01854472,2484.1,2482.4,0.0011]
[1769879123840,0.01214402,2483.9,2482.4,0.0011]
[1769879124240,0.01214402,2483.5,2482.4,0.0011]
[1769879124444,0.01214402,2483.4,2482.4,0.0011]
[1769879124632,0.01214402,2483.3,2482.4,0.0011]
[1769879125156,0.01214402,2482.5,2481.0,1.00763165]
[1769879125462,13.0904891,2482.7,2481.3,1.00751038]
[1769879125463,0.01214402,2482.7,2481.3,1.00751038]
[1769879125626,1.0191528,2482.6,2480.6,1.00782068]
[1769879125827,0.01214402,2482.5,2480.6,1.00782068]
[1769879126045,0.01214402,2482.6,2480.9,13.94178051]
[1769879126245,0.844,2483.5,2481.2,13.94288051]
[1769879126469,0.844,2483.5,2481.3,15.42046856]
[1769879126470,0.01214402,2483.3,2481.3,15.42046856]
[1769879126839,0.01214402,2483.2,2481.3,15.42046856]
[1769879127039,0.01214402,2483.5,2481.5,13.95392453]
[1769879127346,1.00662654,2483.6,2481.9,13.94178051]
[1769879127532,1.01877056,2483.6,2481.9,13.94178051]
[1769879127735,0.01214402,2483.5,2482.0,1.00725221]
[1769879128056,0.01214402,2480.9,2479.6,11.94178051]
[1769879128380,0.01214402,2481.3,2478.7,0.85614402]
[1769879128381,13.18074508,2481.5,2478.7,3.7034766]
[1769879128585,13.18074508,2481.5,2477.9,0.0700754]
[1769879128586,0.1024,2480.2,2477.9,0.0700754]
[1769879128863,0.1024,2480.2,2478.8,1.00854212]
[1769879128864,15.23510099,2480.2,2478.8,1.00854212]
[1769879129079,15.23510099,2480.2,2478.7,1.008579]
[1769879129235,2.15675591,2480.2,2478.8,4.03420331]
[1769879129437,15.23510099,2480.2,2478.3,4.03490204]
[1769879129632,2.15675591,2480.2,2478.3,4.03490204]
[1769879129837,16.24311201,2480.2,2478.3,1.008756]
[1769879130137,16.24311201,2480.2,2478.2,0.40352796]
[1769879130345,13.07834508,2480.0,2478.2,1.00879639]
[1769879131454,3.16476693,2480.2,2478.2,1.00879639]
[1769879131648,3.16476693,2480.2,2478.1,4.03518682]
[1769879131963,3.16475588,2480.2,2478.1,4.03518682]
[1769879132341,3.16475196,2480.2,2478.1,4.03518682]
[1769879132546,3.16474779,2480.2,2478.2,0.80703736]
[1769879133081,2.15675591,2480.2,2478.2,14.74881787]
[1769879133452,3.16475149,2480.2,2478.2,14.74881787]
[1769879133773,3.16475149,2480.2,2477.8,4.04765653]
[1769879133774,13.9505378,2478.9,2476.4,0.001]
[1769879133953,0.20951643,2475.5,2473.1,4.1433985]
[1769879134144,0.49176822,2476.2,2473.7,0.01214402]
[1769879134468,14.0,2477.2,2473.7,0.01214402]
[1769879134670,14.0,2477.2,2473.3,0.01214402]
[1769879134671,14.1024,2477.0,2473.1,0.01214402]
[1769879134871,15.86507812,2477.0,2473.6,0.01214402]
[1769879135059,14.0,2476.8,2474.0,0.01214402]
[1769879135374,14.0,2476.6,2474.1,0.01214402]
[1769879135550,14.0,2476.6,2473.9,0.01214402]
[1769879135754,14.0,2476.4,2474.0,1.01050929]
[1769879135984,14.0,2476.3,2474.2,0.01214402]
[1769879136475,1.00948919,2476.5,2471.3,2.03886289]
[1769879136476,14.1024,2475.4,2471.3,2.03886289]
[1769879136643,14.0,2473.7,2471.2,0.845]
[1769879136845,14.0,2473.5,2471.2,0.845]
[1769879137046,14.0,2473.3,2471.2,1.85665056]
[1769879137365,14.0,2473.1,2470.7,0.01214402]
[1769879137566,14.49769808,2473.8,2471.7,0.01214402]
[1769879137871,15.01063184,2473.7,2471.8,0.01214402]
[1769879138045,15.01063184,2473.7,2471.6,0.01214402]
[1769879138248,15.01063184,2473.7,2470.2,4.04823055]
[1769879138477,15.01063184,2473.7,2471.5,0.01214402]
[1769879138478,14.0,2473.5,2471.5,0.01214402]
[1769879138674,14.0,2473.5,2471.4,1.01155191]
[1769879138878,14.0,2473.5,2471.8,0.01214402]
[1769879139186,1.01063184,2473.7,2472.1,0.01214402]
[1769879139394,1.01063184,2473.7,2472.2,0.845]
[1769879139684,1.18911012,2473.9,2472.9,1.02310281]
[1769879140019,14.46025155,2474.8,2470.8,0.01214402]
[1769879140303,14.01214402,2473.7,2471.5,0.01214402]
[1769879140581,14.0,2473.5,2471.6,0.846]
[1769879140792,14.01214402,2473.5,2471.1,4.05890681]
[1769879141012,14.0,2473.4,2471.7,1.85743094]
[1769879141302,14.0,2472.8,2471.2,0.846]
[1769879141481,14.0,2472.8,2471.3,0.846]
[1769879141660,15.01103082,2472.8,2471.3,0.846]
[1769879141860,16.91650799,2472.8,2470.9,0.01214402]
[1769879142061,15.90547717,2472.8,2471.0,0.85814402]
[1769879142261,15.90547717,2472.8,2471.3,1.01160985]
[1769879142492,1.01079529,2473.3,2471.3,1.01161302]
[1769879142691,1.01079529,2473.3,2471.6,0.01214402]
[1769879142888,4.04318117,2473.4,2471.6,0.01214402]
[1769879142889,1.01077773,2473.4,2471.6,0.01214402]
[1769879143059,14.0,2474.2,2472.1,0.01214402]
[1769879143258,1.29295398,2474.8,2472.8,0.01214402]
[1769879143596,14.0,2474.7,2472.7,0.01214402]
[1769879143801,14.0,2474.7,2473.2,0.01214402]
[1769879144004,0.28276505,2474.8,2473.2,0.01214402]
[1769879144200,0.28276505,2474.8,2473.2,0.52122574]
[1769879144500,1.29294863,2474.8,2473.2,0.50908172]
[1769879144703,0.01214402,2474.3,2472.4,4.04461636]
[1769879145007,0.01214402,2474.2,2473.2,0.846]
[1769879145202,14.0,2474.4,2473.2,0.846]
[1769879145405,0.01214402,2474.5,2472.2,1.01123966]
[1769879145406,14.01214402,2474.2,2472.2,1.01123966]
[1769879145579,14.01214402,2474.2,2473.2,0.846]
[1769879145580,14.0,2474.2,2473.2,0.846]
[1769879145899,14.0,2474.2,2473.3,0.846]
[1769879145900,14.0,2474.1,2473.3,0.846]
[1769879146075,15.9052152,2474.1,2473.3,0.846]
[1769879146270,15.9052152,2474.1,2473.1,0.847]
[1769879146603,14.0,2474.6,2473.4,0.0011]
[1769879146806,4.05320116,2474.7,2473.5,0.847]
[1769879146807,14.0,2474.4,2473.5,0.847]
[1769879146973,15.4,2474.4,2473.4,0.0011]
[1769879147299,15.4,2474.4,2473.5,0.847]
[1769879147609,14.0,2474.2,2473.4,0.0011]
[1769879147798,1.01046845,2474.1,2473.4,0.0011]
[1769879147994,14.0,2473.9,2472.2,0.0011]
[1769879148175,0.1024,2474.0,2472.2,0.0011]
[1769879148176,14.0,2473.3,2472.3,0.847]
[1769879149487,0.01214402,2474.9,2472.3,0.847]
[1769879149488,14.01214402,2474.0,2472.3,0.847]
[1769879149820,2.41037414,2474.4,2472.5,4.0565833]
[1769879150107,2.41037414,2474.4,2472.2,0.01324402]
[1769879150108,14.0,2474.3,2472.6,0.847]
[1769879150281,14.0,2474.3,2472.2,4.04591845]
[1769879150282,14.01214402,2474.3,2472.3,4.04478779]
[1769879150482,14.01214402,2474.3,2472.4,0.847]
[1769879150684,14.01214402,2474.3,2472.4,1.85814243]
[1769879150882,14.0,2474.2,2472.5,1.60141263]
[1769879151115,0.28276505,2474.8,2473.3,0.01214402]